Cogmind - Beta 13 @@@ ROGUE MODE // 2024.03.31 @ 12:41:23 Player: Mogwok Wargfriend Result: Destroyed by as-65206 with Assembled Maul Performance ------------- Evolutions (0) 0 Regions Visited (2) 400 Robots Destroyed (10) 50 Value Destroyed (93) 93 Prototype IDs (0) 0 Alien Tech Used (0) 0 Bonus (0) 0 TOTAL SCORE: 543 Bonus ------- None Cogmind --------- Core Integrity 0/250 Matter 282/300 Energy 43/100 System Corruption 27% Temperature Warm (105) Movement Core (50) Location -10/Mines Parts ------- > --- POWER (1) -------- (None) > --- PROPULSION (2) --- (None) > --- UTILITY (2) ------ (None) > --- WEAPON (2) ------- Small Laser > --- INVENTORY (5) ---- Light Ion Engine Aluminum Leg Wheel Wheel Mining Laser Peak State ------------ > --- POWER ------------ Light Ion Engine > --- PROPULSION ------- Wheel Wheel > --- UTILITY ---------- Small Storage Unit Improved Terrain Scanner > --- WEAPON ----------- Small Laser Light Assault Rifle > --- INVENTORY -------- Light Ion Engine Light Treads Light Treads Aluminum Leg Aluminum Leg Wheel Wheel Small Laser [Rating: 9] Favorites ----------- Power Light Ion Engine Engine Light Ion Engine Propulsion Wheel Leg Aluminum Leg Wheel Wheel Utility Small Storage Unit Device Seismic Detector Storage Small Storage Unit Weapon Small Laser Energy Gun Small Laser Ballistic Gun Light Assault Rifle Build | -11 -10 -10 ------- Run | Yrd Mat Min Slots Evolved . | . . . Power . | . . . Propulsion . | . . . Utility . | . . . Weapon . | . . . Parts Attached 11 | 8 . 3 Power 2 | 1 . 1 Engine 2 | 1 . 1 Core . | . . . Reactor . | . . . Propulsion 3 | 2 . 1 Treads . | . . . Leg 1 | . . 1 Wheel 2 | 2 . . Hover . | . . . Flight . | . . . Utility 3 | 3 . . Device 2 | 2 . . Storage 1 | 1 . . Processor . | . . . Hackware . | . . . Protection . | . . . Artifact . | . . . Weapon 3 | 2 . 1 Energy Gun 2 | 1 . 1 Energy Cannon . | . . . Ballistic Gun 1 | 1 . . Ballistic Cannon . | . . . Launcher . | . . . Special Weapon . | . . . Impact Weapon . | . . . Slashing Weapon . | . . . Piercing Weapon . | . . . Special Melee Weapon . | . . . Unidentified Prototypes . | . . . Parts Lost 7 | . . 7 Power 1 | . . 1 Propulsion 3 | . . 3 Utility 1 | . . 1 Weapon 2 | . . 2 Highest Loss Streak 7 | . . 7 To Critical Strikes . | . . . Average Slot Usage (%) 99 | . 100 96 Engine 14 | . 14 14 Wheel 27 | . 28 25 Device 13 | . 14 11 Storage 14 | . 14 14 Energy Gun 13 | . 14 12 Ballistic Gun 14 | . 14 14 Naked Turns . | . . . Heaviest Build 11 | 11 11 11 Greatest Support 20 | 10 20 20 Greatest Overweight (x) 3 | 3 1 . Average Overweight (x) . | . . . Largest Inventory Capacity 8 | 8 8 8 Average Capacity 7 | 7 8 7 Most Carried 8 | 8 8 8 Average Carried 7 | 6 8 7 Final Capacity 8 | 8 8 5 Final Carried 8 | 8 8 5 Class Distribution -------------------- 100% | Mutant Dominant Class ---------------- Mutant | -10/Materials Mutant | -10/Mines Resources | -11 -10 -10 ----------- Run | Yrd Mat Min Matter Collected 320 | 307 13 . Remotely . | . . . Salvage Created 263 | 214 49 . Parts 29 | 22 7 . Haulers Intercepted . | . . . Recyclers Shooed . | . . . Parts Field Recycled . | . . . Retrieved Matter . | . . . Parts Self-Destructed . | . . . Prevented . | . . . Kills | -11 -10 -10 ------- Run | Yrd Mat Min Combat Hostiles Destroyed 1 | . 1 . Guns 1 | . 1 . Classes Destroyed 5 | 3 2 . Worker 2 | 2 . . Tunneler 5 | 5 . . Recycler 1 | 1 . . Operator 1 | . 1 . Grunt 1 | . 1 . Best Kill Streak 3 | 3 2 . Combat Bots Only 1 | . 1 . Max Kills in Single Turn 1 | 1 1 . Gunslinging . | . . . Exploded . | . . . Melee . | . . . Uniques/NPCs Destroyed . | . . . Combat | -11 -10 -10 -------- Run | Yrd Mat Min Hostile Shots Fired 64 | . 6 58 Missed 14 | . 2 12 Damage Taken 878 | . 45 833 Core 254 | . 12 242 Absorbed by Shields . | . . . Core Remaining (%) 100 | 100 . . Volleys Fired 41 | 27 7 7 Largest 2 | 2 2 2 Hottest 60 | 60 60 60 Shots Fired 82 | 53 14 15 Gun 82 | 53 14 15 Cannon . | . . . Launcher . | . . . Special . | . . . Kinetic 42 | 27 7 8 Thermal 40 | 26 7 7 Explosive . | . . . Electromagnetic . | . . . Robot Hit Streak 7 | 7 6 3 Robot Miss Streak 4 | 4 1 4 Penetration Max . | . . . Secondary Targets . | . . . Shots Hit Robots 42 | 27 10 5 Core Hits 24 | 13 5 6 Critical Kills . | . . . Critical Parts Destroyed . | . . . Critical Strikes . | . . . Melee Attacks . | . . . Impact . | . . . Slashing . | . . . Piercing . | . . . Sneak Attacks . | . . . Combat Hostiles . | . . . Follow-up Attacks . | . . . Damage Inflicted 446 | 268 97 81 Guns 443 | 268 97 78 Cannons . | . . . Explosions . | . . . Melee . | . . . Ramming 3 | . . 3 Kinetic 172 | 97 30 45 Thermal 271 | 171 67 33 Explosive . | . . . Electromagnetic . | . . . Impact . | . . . Slashing . | . . . Piercing . | . . . Highest Corruption 27 | . 2 27 Average Corruption 2 | . 2 4 Corruption Purged . | . . . Corruption Blocked . | . . . Effects 11 | . 5 6 Message Errors 2 | . 1 1 Matter Fused 2 | . 2 . Energy Discharges 3 | . 1 2 Data Loss (minor) 1 | . 1 . Misfires 2 | . . 2 Weapon Failures 1 | . . 1 Overload Shots . | . . . Overflow Damage . | . . . Projectiles . | . . . Explosions . | . . . Melee . | . . . Knockbacks . | . . . Impact . | . . . Kinetic . | . . . Secondary . | . . . Self-Inflicted Damage 1 | . . 1 Shots . | . . . Rammed 1 | . . 1 Targets Rammed 1 | . . 1 Kicked . | . . . Crushed . | . . . Highest Temperature 195 | 60 38 195 Average Temperature 44 | 30 18 98 Received Heat Transfer 264 | . 24 240 Siege Activations . | . . . Robots Corrupted . | . . . Combat Hostiles . | . . . Parts Fried . | . . . Impact Corruptions . | . . . Robots Melted . | . . . Combat Hostiles . | . . . Parts Melted . | . . . Heat Transferred 625 | 400 150 75 Parts Sabotaged . | . . . Parts Stolen . | . . . Parts Stripped . | . . . Power Chain Reactions . | . . . Alert | -11 -10 -10 ------- Run | Yrd Mat Min Peak Influence 76 | 40 76 17 Initial 26 | . 26 17 Average 35 | 20 47 14 Maximum Alert Level . | . . . Low Security (%) 100 | 100 100 100 Level 1 . | . . . Level 2 . | . . . Level 3 . | . . . Level 4 . | . . . Level 5 . | . . . High Security . | . . . Max Security . | . . . Squads Dispatched 5 | . 5 . Investigation 3 | . 3 . Extermination . | . . . Reinforcement 2 | . 2 . Assault . | . . . Garrison . | . . . Intercept . | . . . Searches Triggered . | . . . Construction Impeded . | . . . Haulers Reinforced . | . . . Active Scanning Responses . | . . . Cargo Convoy Interrupts . | . . . Stealth | -11 -10 -10 --------- Run | Yrd Mat Min Distress Signals . | . . . Communications Jammed . | . . . Distress Signals . | . . . Times Spotted 19 | . 7 12 Peak Tracking Total 12 | . 3 12 Tactical Retreats 3 | . 1 2 Traps | -11 -10 -10 ------- Run | Yrd Mat Min Traps Triggered 2 | . 2 . Indirectly . | . . . Trap Hack Attempts . | . . . Triggered . | . . . Disarmed . | . . . Reprogrammed . | . . . Reused . | . . . Traps Extracted . | . . . Installed . | . . . Triggered . | . . . Machines | -11 -10 -10 ---------- Run | Yrd Mat Min Machines Disabled . | . . . Max in Single Turn . | . . . Machines Repaired . | . . . Machines Dismantled . | . . . Machines Sabotaged . | . . . Overloaded Fab Kills . | . . . Hacking | -11 -10 -10 --------- Run | Yrd Mat Min Machines Accessed 2 | . 2 . Terminals 2 | . 2 . Fabricators . | . . . Repair Stations . | . . . Recycling Units . | . . . Scanalyzers . | . . . Garrison Access . | . . . Total Hacks 4 | . 4 . Successful . | . . . Failed 4 | . 4 . Catastrophic 2 | . 2 . Database Lockouts . | . . . Manual 4 | . 4 . Terminals 4 | . 4 . Fabricators . | . . . Repair Stations . | . . . Recycling Units . | . . . Scanalyzers . | . . . Garrison Access . | . . . Terminal Hacks . | . . . Fabricator Hacks . | . . . Repair Station Hacks . | . . . Recycling Unit Hacks . | . . . Scanalyzer . | . . . Garrison Access Hacks . | . . . Unauthorized Hacks . | . . . Terminals . | . . . Fabricators . | . . . Repair Stations . | . . . Recycling Units . | . . . Scanalyzers . | . . . Garrison Access . | . . . Data Cores Recovered . | . . . Used . | . . . Hacking Detections 2 | . 2 . Full Trace Events 2 | . 2 . Feedback Events . | . . . Feedback Blocked . | . . . Robot Schematics Acquired . | . . . Robots Built . | . . . Authchips . | . . . Time . | . . . Total Robot Build Rating . | . . . Part Schematics Acquired . | . . . Parts Built . | . . . Authchips . | . . . Time . | . . . Total Part Build Rating . | . . . Parts Repaired . | . . . Time . | . . . Parts Recycled . | . . . Recycled Matter . | . . . Retrieved Matter . | . . . Retrieved Components . | . . . Parts Scanalyzed . | . . . Part Schematics Acquired . | . . . Parts Damaged . | . . . Bothacking | -11 -10 -10 ------------ Run | Yrd Mat Min Used RIF Installer . | . . . Robots Hacked . | . . . Non-combat . | . . . Combat . | . . . Robot Hacks Applied . | . . . Relay Couplers Released . | . . . Fabnet Peak Effective % . | . . . Robots Rewired . | . . . Allies Hacked . | . . . Hacks Repelled . | . . . Allies | -11 -10 -10 -------- Run | Yrd Mat Min Total Allies . | . . . Largest Group . | . . . Highest-Rated Group . | . . . Highest-Rated Ally . | . . . Total Orders . | . . . Ally Attacks . | . . . Total Damage . | . . . Kills . | . . . Allies Corrupted . | . . . Allies Melted . | . . . Intel | -11 -10 -10 ------- Run | Yrd Mat Min Robot Analysis Total . | . . . Derelict Logs Recovered . | . . . Drone Launches . | . . . Drone Recoveries . | . . . Exploration | -11 -10 -10 ------------- Run | Yrd Mat Min Turns Passed 796 | 206 468 122 Spaces Moved 496 | 116 262 118 Core 9 | 8 . 1 Treads . | . . . Legs . | . . . Wheels 487 | 108 262 117 Hover . | . . . Flight . | . . . Fastest Speed 50 | 50 80 50 Average Speed 84 | 87 85 79 Slowest Speed 200 | 200 95 80 Overloaded Moves . | . . . Propulsion Burnouts . | . . . Robots Hopped . | . . . Cave-ins Triggered . | . . . Exploration Rate (%) 22 | 6 33 27 Regions Visited 2 Branch Regions 1 Pre-discovered Areas . | . . . Known Exits Taken . | . . . Unknown Exits Taken 2 | 1 1 . Scrap Searched . | . . . Spaces Dug . | . . . Terrain Destroyed . | . . . Melee . | . . . Projectile . | . . . AOE . | . . . Terrain Rammed . | . . . Walls Destroyed . | . . . Machines Disabled . | . . . Actions | -11 -10 -10 --------- Run | Yrd Mat Min Total 796 | 170 492 134 Wait 233 | 7 224 2 Move 494 | 115 261 118 Hop . | . . . Pick Up 10 | 10 . . Fast Attach 7 | 7 . . Attach 4 | 1 . 3 Detach 2 | 1 . 1 Swap . | . . . Drop 4 | 2 . 2 Fire 41 | 27 7 7 Melee . | . . . Ram 1 | . . 1 Kick . | . . . Crush . | . . . Escape Stasis . | . . . Rewire . | . . . Trap . | . . . Miscellaneous . | . . . Route ------- -11/Scrapyard -10/Materials (discovered 2 exits: [*Mat] / [*Min]) -10/Mines History --------- Turn | Location | Event 26 | -11/Scrapyard | Discovered new exit (range 16) 207 | -11/Scrapyard | Entered Materials 303 | -10/Materials | Build established: Mutant 614 | -10/Materials | Discovered new exit (range 10) 648 | -10/Materials | Discovered new exit (range 10) 675 | -10/Materials | Entered Mines 733 | -10/Mines | Assembled infested the area 738 | -10/Mines | Assisted by a Guerilla fighting off Assembled 790 | -10/Mines | System corruption reached 10% 793 | -10/Mines | Core integrity fell below 50% 796 | -10/Mines | Core integrity fell below 20% 797 | -10/Mines | Destroyed by as-65206 with Assembled Maul Last Messages --------------- 00783_ System corrupted: Lgt. Assault Rifle jammed. 00786_ Knocked back. 00788_ Critical hit (Burn: +80). 00789_ as-69594 destroyed. 00789_ Sml. Laser destroyed. 00789_ System corrupted by crushing effect (+4). 00790_ Lgt. Ion Engine destroyed. 00790_ Aluminum Leg destroyed. 00790_ Wheel destroyed. 00790_ System corrupted by crushing effect (+5). 00790_ System corrupted by crushing effect (+4). 00791_ Lgt. Assault Rifle destroyed. 00794_ System corrupted: Energy discharge (-21). 00794_ as-71283 destroyed. 00794_ Dropped Imp. Terrain Scanner. 00795_ Dropped Sml. Storage Unit. 00795_ Knocked back. 00796_ Slammed into as-30451. Map ----- +----------------------------------------------------+ | | | | | | | | | | | ????????????????????????????????????????? | | ??????????????????????????########??????? | | ??????????????????????#### ##?????? | | ??????????????????##### #?????? | | ????????????###??## #?????? | | ???????????## ### #?????? | | ???????????# #?????? | | ???????????# #??????? | | ????????????# #????????? | | ????????????## #?????????? | | ?????????????## #?????????? | | ??????????????#### ## #?????????? | | ????????????###### ### #?????????? | | ????????????# #?## ######????? | | ????????????# #??## #????? | | ????????????# ######???# #????? | | ????????????# #???????## a ##???? | | ????????????# #???????# % #???? | | ??????????### #???????# aa #???? | | ?????????##/! #???????##a% #???? | | ?????????# #????????#@a #???? | | ?????????# #????????#!a ##???? | | ?????????# !##???????#!a ##????? | | ?????????# ! #???????## #?????? | | ?????????#! #????????## ##?????? | | ?????????##! ######?????## #??????? | | ??????????#### ### ##?????? ##??????? | | ??????????#### ## #?????? #???????? | | ??????????# #??????# ##???????? | | ??????????# """ ##??????###????????? | | ??????????# ## """ #?????????????????? | | ??????????# ## """ #?????????????????? | | ??????????# ### #?????????????????? | | ??????????# #?## #?????????????????? | | ??????????# #??## #?????????????????? | | ??????????# #???## #?????????????????? | | ??????????# #????#####?????????????????? | | ??????????# #??????????????????????????? | | ??????????# #??????????????????????????? | | ??????????# #??????????????????????????? | | ??????????# #??????????????????????????? | | ??????????# #??????????????????????????? | | ??????????# !#??????????????????????????? | | ??????????#!%#??????????????????????????? | | ??????????# ??????????????????????????? | +----------------------------------------------------+ Best States ------------- Heat Dissipation 25 Energy Generation 10 Energy Capacity 125 Matter Stores 300 Matter Capacity 300 Sight Range 16 Terrain Scan Range 16 Terrain Scan Density 10 Evasion (%) 44 Item Schematics ----------------- None Robot Schematics ------------------ None Fabricated ------------ Nothing Alien Tech Used ----------------- None Achievements -------------- None Challenges ------------ None Game ------ Seed SlugBoreCasing Manual? 0 Play Time 00:08:52 Cumulative 131.1 hours Start 2024.03.31 @ 02:29:40 End 2024.03.31 @ 12:41:23 Sessions 2 Manual Loads 0 Difficulty Rogue Special Mode None Game No. 126 Rogue 126 Adventurer 0 Explorer 0 Win Type - Total 0 Types 0/0/0/0/0/0/0/0/0 Lore% 45 Gallery% 58 Achievement% 39 Wizard Run 0 Options --------- Layout 2 ASCII 1 Keyboard 1 Movement Numpad Keybinds 0 Fullscreen 2 Font 32/TamsynBold Map View 50x44 Zoom Use 0% Tactical HUD 1 Map Filters NONE Filters NONE Steam 1 RUN: a8807a25-5f0e-4bb2-8fb6-0fa5d31144d5